bitfinex/quotes_BTCUSD_20241226
["timestamp","ask_amount","ask_price","bid_price","bid_amount"]
[1735215123154,0.12617775,95650.0,95641.0,0.209113]
[1735215123368,0.00484236,95645.0,95641.0,0.209113]
[1735215123841,0.00484236,95644.0,95641.0,0.209113]
[1735215124233,0.12617775,95650.0,95641.0,0.209113]
[1735215124538,0.00484236,95643.0,95641.0,0.002]
[1735215124709,0.0001712,95655.0,95642.0,0.02356848]
[1735215124910,0.0001712,95655.0,95649.0,0.209096]
[1735215125116,0.00484236,95654.0,95649.0,0.209096]
[1735215125359,0.0001712,95655.0,95649.0,0.209096]
[1735215126148,0.0001712,95655.0,95649.0,0.215096]
[1735215126397,0.00484236,95654.0,95649.0,0.006]
[1735215126609,0.25,95651.0,95649.0,0.006]
[1735215126798,0.46725517,95650.0,95649.0,0.006]
[1735215127119,0.46725517,95650.0,95649.0,0.009]
[1735215127558,0.46725517,95650.0,95649.0,0.006]
[1735215127770,0.2091,95648.0,95630.0,0.00103181]
[1735215127975,0.11016999,95647.0,95631.0,0.0005687]
[1735215128167,0.08182477,95646.0,95631.0,0.0005687]
[1735215128372,0.10398632,95645.0,95631.0,0.0005687]
[1735215128576,0.10398632,95645.0,95631.0,0.2097047]
[1735215128577,0.00487672,95644.0,95631.0,0.2097047]
[1735215128771,0.10398632,95643.0,95631.0,0.2097047]
[1735215129269,0.00487672,95642.0,95631.0,0.2117047]
[1735215129491,0.10398632,95641.0,95631.0,0.2117047]
[1735215129694,0.10398632,95641.0,95631.0,0.2147047]
[1735215129902,0.00418005,95640.0,95631.0,0.2147047]
[1735215130504,0.00418005,95640.0,95631.0,0.2157047]
[1735215130931,0.00418005,95640.0,95632.0,0.04483139]
[1735215131134,0.00418005,95640.0,95631.0,0.209136]
[1735215131403,0.00418005,95640.0,95631.0,0.214136]
[1735215131606,0.00418005,95640.0,95631.0,0.211136]
[1735215131805,0.00418005,95640.0,95631.0,0.216136]
[1735215132627,0.00418005,95640.0,95631.0,0.214136]
[1735215133004,0.00418005,95640.0,95632.0,0.002]
[1735215133486,0.00418005,95640.0,95631.0,0.214136]
[1735215133663,0.00418005,95640.0,95631.0,0.216136]
[1735215134304,0.00418005,95640.0,95634.0,0.20913]
[1735215134456,0.00418005,95640.0,95636.0,0.209126]
[1735215134675,0.15,95649.0,95637.0,0.00056851]
[1735215134880,0.15,95649.0,95638.0,0.209121]
[1735215135080,0.00487934,95648.0,95639.0,0.00056849]
[1735215135281,0.00487934,95648.0,95641.0,0.209115]
[1735215135488,0.00487934,95648.0,95642.0,0.00056837]
[1735215135688,0.000171,95650.0,95643.0,0.00056838]
[1735215136652,0.000171,95650.0,95644.0,0.00056837]
[1735215138641,0.000171,95650.0,95644.0,0.00556837]
[1735215139310,0.000171,95650.0,95645.0,0.48436082]
[1735215139526,0.000171,95650.0,95647.0,0.232102]
[1735215139716,0.000171,95650.0,95649.0,0.232097]
[1735215140165,0.000171,95650.0,95645.0,0.209106]
[1735215140521,0.000171,95650.0,95645.0,0.214106]
[1735215141022,0.000171,95650.0,95646.0,0.023]
[1735215141230,0.000171,95650.0,95649.0,0.006]
[1735215142417,0.000171,95650.0,95647.0,0.209102]
[1735215142619,0.000171,95650.0,95649.0,0.009]
[1735215143461,0.000171,95650.0,95649.0,0.006]
[1735215144177,0.000171,95650.0,95649.0,0.00656818]
[1735215145203,0.000171,95650.0,95649.0,0.01556818]
[1735215146191,0.000171,95650.0,95649.0,0.39852546]
[1735215146408,0.1,95684.0,95649.0,0.39852546]
[1735215146409,0.0758,95688.0,95665.0,0.1]
[1735215146650,0.00495207,95686.0,95672.0,0.023]
[1735215146847,0.00845993,95686.0,95681.0,0.209027]
[1735215147065,0.0758,95697.0,95683.0,0.209023]
[1735215147273,0.0758,95697.0,95685.0,0.209019]
[1735215147474,0.00022299,95687.0,95686.0,0.02356721]
[1735215148539,0.00022299,95687.0,95686.0,0.03256721]
[1735215149754,0.00022299,95687.0,95686.0,0.03656721]
[1735215150401,0.00130606,95711.0,95686.0,0.37075353]
[1735215150580,0.0001712,95719.0,95718.0,0.231947]
[1735215150808,0.00022318,95719.0,95718.0,0.231947]
[1735215152463,0.00022318,95719.0,95718.0,0.240947]
[1735215152646,0.00022318,95719.0,95718.0,0.33593332]
[1735215152851,0.00022318,95719.0,95718.0,0.35193332]
[1735215153209,0.00022318,95719.0,95718.0,0.34493332]
[1735215153599,0.00022318,95719.0,95718.0,0.247947]
[1735215154131,0.00130565,95739.0,95724.0,0.208934]
[1735215154333,0.00069099,95725.0,95724.0,0.208934]
[1735215154967,0.00069099,95725.0,95719.0,0.208944]
[1735215155394,0.00069099,95725.0,95718.0,0.007]
[1735215155542,0.00069099,95725.0,95724.0,0.009]
[1735215155742,0.00069099,95725.0,95724.0,0.015]
[1735215156467,0.00069099,95725.0,95724.0,0.006]
[1735215156987,0.00041396,95725.0,95724.0,0.006]
[1735215157756,0.10570608,95725.0,95724.0,0.006]
[1735215158204,0.25570608,95725.0,95724.0,0.006]
[1735215158376,0.25440028,95725.0,95724.0,0.015]
[1735215159139,0.25440028,95725.0,95724.0,0.006]
[1735215159364,0.567868,95724.0,95705.0,0.208973]
[1735215159567,0.12617775,95715.0,95705.0,0.208973]
[1735215160286,0.12617775,95715.0,95705.0,0.4597419]
[1735215160517,0.12617775,95715.0,95705.0,0.4607419]
[1735215160645,0.208938,95722.0,95711.0,0.023]
[1735215160646,0.15,95722.0,95711.0,0.023]
[1735215160852,0.15,95722.0,95712.0,0.00056656]
[1735215161070,0.00574135,95721.0,95714.0,0.208955]
[1735215161483,0.15,95722.0,95714.0,0.208955]
[1735215161804,0.1501712,95729.0,95716.0,0.208951]
[1735215161954,0.00574588,95724.0,95716.0,0.208951]
[1735215163129,0.00574588,95724.0,95716.0,0.213951]
[1735215163281,0.00574588,95724.0,95716.0,0.215951]
[1735215163731,0.00574588,95724.0,95716.0,0.213951]
[1735215164341,0.00574588,95724.0,95716.0,0.208951]
[1735215164771,0.00574588,95724.0,95716.0,0.213951]
[1735215164968,0.00574588,95724.0,95716.0,0.208951]
[1735215165183,0.00574588,95724.0,95716.0,0.215951]
[1735215165580,0.00574588,95724.0,95716.0,0.210951]
[1735215165881,0.00574588,95724.0,95716.0,0.213951]
[1735215166024,0.00574588,95724.0,95716.0,0.215951]
[1735215166422,0.1501712,95729.0,95716.0,0.213951]
[1735215166622,0.15,95727.0,95717.0,0.0445914]
[1735215166837,0.00480111,95726.0,95717.0,0.0445914]
[1735215167866,0.00480111,95726.0,95718.0,0.0005664]
[1735215168089,0.00480111,95726.0,95719.0,0.00056629]
[1735215168260,0.0001712,95729.0,95720.0,0.00056629]
[1735215168502,0.0047996,95725.0,95720.0,0.00056629]
[1735215168711,0.0001712,95729.0,95721.0,0.02612657]
[1735215168891,0.004817,95724.0,95721.0,0.02669283]
[1735215169093,0.0001712,95729.0,95721.0,0.02612657]
[1735215169319,0.0001712,95729.0,95722.0,0.208938]
[1735215169519,0.00482303,95728.0,95723.0,0.04903252]
[1735215170085,0.00485327,95727.0,95723.0,0.04903252]
[1735215170399,0.0001712,95729.0,95723.0,0.04903252]
[1735215170733,0.00485327,95728.0,95723.0,0.04903252]
[1735215171295,0.00485327,95728.0,95723.0,0.05503252]
[1735215171479,0.00485327,95728.0,95723.0,0.05103252]
[1735215171646,0.00485327,95728.0,95724.0,0.03352638]
[1735215171850,0.00485327,95728.0,95723.0,0.05703252]
[1735215172060,0.00485327,95728.0,95719.0,0.00056629]
[1735215172253,0.00485327,95728.0,95723.0,0.003]
[1735215172583,0.00485327,95728.0,95723.0,0.01]
[1735215172718,0.00485327,95728.0,95723.0,0.007]
[1735215173152,0.00485327,95728.0,95723.0,0.01]
[1735215173575,0.00485327,95728.0,95723.0,0.02726733]
[1735215174038,0.00485327,95728.0,95723.0,0.03326733]
[1735215174800,0.00485327,95728.0,95727.0,0.123]
[1735215175003,0.0001712,95729.0,95728.0,0.331925]
[1735215175733,0.000171,95736.0,95729.0,0.1]
[1735215175941,0.000171,95736.0,95735.0,0.23191]
[1735215176748,0.000171,95736.0,95735.0,0.33191]
[1735215178331,0.000171,95736.0,95735.0,0.44489632]
[1735215178542,0.000171,95736.0,95735.0,0.61659632]
[1735215178912,0.000171,95736.0,95735.0,0.62559632]
[1735215179113,0.000171,95736.0,95735.0,0.72261188]
[1735215179643,0.000171,95736.0,95735.0,0.71661188]
[1735215180233,0.000171,95744.0,95741.0,0.408896]
[1735215180443,0.000171,95744.0,95741.0,0.53588232]
[1735215180649,0.000171,95744.0,95735.0,0.64242851]
[1735215180809,0.000171,95744.0,95735.0,0.34381851]
[1735215181000,0.000171,95744.0,95735.0,0.35981851]
[1735215181213,0.000171,95744.0,95735.0,0.62560116]
[1735215181410,0.000171,95744.0,95735.0,0.35081851]
[1735215181641,0.000171,95744.0,95735.0,0.34381851]
[1735215181642,0.21223539,95741.0,95735.0,0.34381851]
[1735215181888,0.21223539,95741.0,95735.0,0.008]
[1735215181889,0.208907,95737.0,95735.0,0.008]
[1735215182121,0.00130566,95736.0,95735.0,0.008]
[1735215182333,0.25398632,95736.0,95724.0,0.09319365]
[1735215182543,0.208931,95725.0,95724.0,0.09319365]
[1735215182948,0.208927,95727.0,95724.0,0.09319365]
[1735215183146,0.208927,95727.0,95716.0,0.00024147]
[1735215183409,0.417863,95725.0,95716.0,0.00024147]
[1735215184363,0.417863,95725.0,95724.0,0.005]
[1735215184364,0.208931,95725.0,95724.0,0.005]
[1735215184796,0.208924,95729.0,95716.0,0.00024147]
[1735215184980,0.208924,95729.0,95716.0,0.00524147]
[1735215185187,0.12617775,95726.0,95717.0,0.04231695]
[1735215185593,0.12617775,95726.0,95724.0,0.005]
[1735215185788,0.208931,95725.0,95724.0,0.005]
[1735215186954,0.208931,95725.0,95716.0,0.00124147]
[1735215187125,0.00073954,95724.0,95716.0,0.00424147]
[1735215187372,0.15,95726.0,95716.0,0.00424147]
[1735215187578,0.00073954,95725.0,95716.0,0.00124147]
[1735215187794,0.00073954,95725.0,95724.0,0.005]
[1735215187999,0.00073954,95725.0,95724.0,0.007]
[1735215188206,0.00073954,95725.0,95724.0,0.002]
[1735215188583,0.00073954,95725.0,95716.0,0.00624147]
[1735215188893,0.00073954,95725.0,95716.0,0.00124147]
[1735215189397,0.00073954,95725.0,95724.0,0.000171]
[1735215189741,0.00073954,95725.0,95724.0,0.001171]
[1735215190576,0.00073954,95725.0,95724.0,0.005171]
[1735215191508,0.00073954,95725.0,95724.0,0.004171]
[1735215191943,0.00073954,95725.0,95724.0,0.002171]
[1735215192694,0.10472586,95725.0,95724.0,0.002171]
[1735215192891,0.25472586,95725.0,95724.0,0.002171]
[1735215193110,0.25398632,95725.0,95724.0,0.002171]
[1735215193674,0.25398632,95725.0,95724.0,0.006171]
[1735215194538,0.25398632,95725.0,95724.0,0.000171]
[1735215194848,0.25398632,95725.0,95724.0,0.001171]
[1735215195045,0.25398632,95725.0,95724.0,0.004171]
[1735215195249,0.30008632,95725.0,95724.0,0.003171]
[1735215195394,0.30008632,95725.0,95724.0,0.004171]
[1735215196895,0.208901,95740.0,95724.0,0.004171]
[1735215197100,0.12617775,95740.0,95725.0,0.00915162]
[1735215197306,0.000171,95744.0,95727.0,0.023]
[1735215197517,0.09302547,95742.0,95741.0,0.208895]
[1735215198355,0.09302547,95742.0,95741.0,0.231895]
[1735215198763,0.000171,95744.0,95742.0,0.023]
[1735215198966,0.000171,95744.0,95742.0,0.02404427]
[1735215201046,0.000171,95744.0,95742.0,0.1087187]
[1735215201245,0.000171,95744.0,95742.0,0.31870502]
[1735215201477,0.000171,95744.0,95742.0,0.40646075]
[1735215201821,0.000171,95744.0,95742.0,0.39146075]
[1735215202365,0.000171,95744.0,95742.0,0.1118]
[1735215202563,0.000171,95744.0,95742.0,0.11884426]
[1735215203810,0.000171,95744.0,95742.0,0.12784426]
[1735215203981,0.000171,95744.0,95742.0,0.33183058]
[1735215204181,0.000171,95744.0,95742.0,0.31278632]
[1735215204387,0.000171,95744.0,95742.0,0.41673495]
[1735215204703,0.000171,95744.0,95742.0,0.31673495]
[1735215204845,0.000171,95744.0,95742.0,0.21578632]
[1735215205298,0.000171,95744.0,95742.0,0.22178632]
[1735215205503,0.000171,95744.0,95742.0,0.21278632]
[1735215205654,0.000171,95744.0,95742.0,0.20678632]
[1735215206118,0.000171,95744.0,95742.0,0.21378632]
[1735215206266,0.000171,95744.0,95742.0,0.30713495]
[1735215207065,0.000171,95744.0,95742.0,0.31613495]
[1735215207671,0.000171,95744.0,95742.0,0.32513495]
[1735215208720,0.000171,95744.0,95742.0,0.048]
[1735215208909,0.000171,95744.0,95742.0,0.04904431]
[1735215210067,0.000171,95744.0,95742.0,0.03104431]
[1735215210422,0.000171,95744.0,95742.0,0.13703063]
[1735215210626,0.000171,95744.0,95742.0,0.22803063]
[1735215210829,0.000171,95744.0,95742.0,0.32945938]
[1735215211032,0.000171,95744.0,95742.0,0.34264138]
[1735215211255,0.000171,95744.0,95742.0,0.32664138]
[1735215211629,0.000171,95744.0,95742.0,0.34264138]
[1735215211985,0.000171,95744.0,95742.0,0.13398632]
[1735215212112,0.000171,95744.0,95742.0,0.12698632]
[1735215212317,0.000171,95744.0,95742.0,0.22698632]
[1735215212538,0.000171,95744.0,95742.0,0.23398632]
[1735215213315,0.000171,95744.0,95742.0,0.24298632]
[1735215213520,0.000171,95744.0,95742.0,0.34037325]
[1735215213844,0.000171,95744.0,95742.0,0.23337325]
[1735215214044,0.000171,95744.0,95742.0,0.34037325]
[1735215214276,0.000171,95744.0,95742.0,0.24037325]
[1735215214452,0.000171,95744.0,95742.0,0.34037325]
[1735215214704,0.000171,95744.0,95742.0,0.32437325]
[1735215215064,0.000171,95744.0,95742.0,0.34037325]
[1735215215460,0.000171,95744.0,95742.0,0.33337325]
[1735215215887,0.000171,95744.0,95742.0,0.34037325]
[1735215216664,0.000171,95744.0,95742.0,0.33137325]
[1735215217104,0.000171,95744.0,95742.0,0.33337325]
[1735215217485,0.000171,95744.0,95742.0,0.24037325]
[1735215218028,0.000171,95744.0,95742.0,0.23137325]
[1735215218200,0.000171,95744.0,95742.0,0.24037325]
[1735215218433,0.000171,95744.0,95742.0,0.14298632]
[1735215218596,0.000171,95744.0,95742.0,0.13398632]
[1735215219201,0.000171,95744.0,95742.0,0.12698632]
[1735215219766,0.000171,95744.0,95742.0,0.13598632]
[1735215220321,0.000171,95744.0,95742.0,0.13703057]
[1735215220671,0.000171,95744.0,95742.0,0.14403057]
[1735215221074,0.000171,95744.0,95742.0,0.13598632]
[1735215221364,0.000171,95744.0,95742.0,0.22267315]
[1735215221598,0.000171,95744.0,95742.0,0.22967315]
[1735215222458,0.000171,95744.0,95742.0,0.14298632]
[1735215224889,0.000171,95744.0,95742.0,0.039171]
[1735215225108,0.000171,95744.0,95742.0,0.04021529]
[1735215225419,0.000171,95744.0,95742.0,0.016171]
[1735215225867,0.00082504,95743.0,95742.0,0.016171]
[1735215226183,0.47651136,95743.0,95742.0,0.016171]
[1735215226384,0.47577182,95743.0,95742.0,0.016171]
[1735215226585,0.47577182,95743.0,95742.0,0.007171]
[1735215226969,0.47577182,95743.0,95742.0,0.015171]
[1735215227376,0.47577182,95743.0,95742.0,0.008171]
[1735215227750,0.47577182,95743.0,95742.0,0.004171]
[1735215227955,0.47577182,95743.0,95742.0,0.011171]
[1735215228214,0.47577182,95743.0,95742.0,0.007171]
[1735215228576,0.47577182,95743.0,95742.0,0.010171]
[1735215228985,0.50106383,95743.0,95742.0,0.010171]
[1735215229387,0.50106383,95743.0,95742.0,0.003171]
[1735215229711,0.47577182,95743.0,95742.0,0.010171]
[1735215229915,0.47577182,95743.0,95742.0,0.000171]
[1735215230418,0.47777182,95743.0,95742.0,0.000171]
[1735215230844,0.47677182,95743.0,95742.0,0.000171]
[1735215231341,0.47877182,95743.0,95742.0,0.000171]
[1735215231547,0.47777182,95743.0,95742.0,0.000171]
[1735215231912,0.47877182,95743.0,95742.0,0.000171]
[1735215232713,0.37668632,95743.0,95742.0,0.000171]
[1735215232914,0.37868632,95743.0,95742.0,0.000171]
[1735215233114,0.37668632,95743.0,95742.0,0.000171]
[1735215233582,0.37868632,95743.0,95742.0,0.000171]
[1735215233985,0.37768632,95743.0,95742.0,0.000171]
[1735215234431,0.37868632,95743.0,95742.0,0.000171]
[1735215237232,0.37877182,95743.0,95742.0,0.000171]
[1735215240814,0.40704542,95743.0,95742.0,0.000171]
[1735215241368,0.64351642,95743.0,95742.0,0.000171]
[1735215241962,0.74750274,95743.0,95742.0,0.000171]
[1735215242419,0.64351642,95743.0,95742.0,0.000171]
[1735215243506,0.40704542,95743.0,95742.0,0.000171]
[1735215243707,1.2426728,95743.0,95742.0,0.000171]
[1735215243938,0.9675108,95743.0,95742.0,0.000171]
[1735215246405,1.1675108,95743.0,95742.0,0.000171]
[1735215246607,1.27149712,95743.0,95742.0,0.000171]
[1735215246997,1.33441712,95743.0,95742.0,0.000171]
[1735215247404,1.33141712,95743.0,95742.0,0.000171]
[1735215247583,1.33241712,95743.0,95742.0,0.000171]
[1735215248195,1.33141712,95743.0,95742.0,0.000171]
[1735215248389,1.2284308,95743.0,95742.0,0.000171]
[1735215248591,1.2324308,95743.0,95742.0,0.001171]
[1735215249038,1.2324308,95743.0,95742.0,0.000171]
[1735215249239,1.2364308,95743.0,95742.0,0.001171]
[1735215250493,1.34041712,95743.0,95742.0,0.001171]
[1735215250696,1.34041712,95743.0,95742.0,1e-06]
[1735215251101,1.30141712,95743.0,95742.0,1e-06]
[1735215252364,0.521851,95725.0,95724.0,0.000171]
[1735215252556,3.54845122,95725.0,95724.0,0.000171]
[1735215252734,3.53653182,95725.0,95724.0,0.000171]
[1735215253153,3.64051814,95725.0,95724.0,0.000171]
[1735215253567,3.74051814,95725.0,95724.0,0.000171]
[1735215253770,3.74051814,95725.0,95724.0,1e-06]
[1735215253976,3.76169751,95725.0,95724.0,1e-06]
[1735215254933,3.66369751,95725.0,95724.0,1e-06]
[1735215255313,3.76869751,95725.0,95724.0,1e-06]
[1735215255513,1.80806884,95725.0,95724.0,1e-06]
[1735215255718,1.73186884,95725.0,95724.0,1e-06]
[1735215255869,1.83686884,95725.0,95724.0,0.001001]
[1735215256079,2.72870484,95725.0,95724.0,0.001001]
[1735215256286,1.94868984,95725.0,95724.0,0.001001]
[1735215256484,2.04668984,95725.0,95724.0,0.001001]
[1735215256678,2.04168984,95725.0,95724.0,1e-06]
[1735215256888,1.92178384,95725.0,95724.0,1e-06]
[1735215257107,1.73686884,95725.0,95724.0,1e-06]
[1735215257308,1.73386884,95725.0,95724.0,1e-06]
[1735215257699,1.73486884,95725.0,95724.0,1e-06]
[1735215257900,1.90570384,95725.0,95724.0,1e-06]
[1735215258098,2.02828922,95725.0,95724.0,1e-06]
[1735215258498,2.03228922,95725.0,95724.0,1e-06]
[1735215259310,1.86145422,95725.0,95724.0,1e-06]
[1735215259533,2.15788722,95725.0,95724.0,1e-06]
[1735215259770,2.15688722,95725.0,95724.0,1e-06]
[1735215260092,1.75845422,95725.0,95724.0,1e-06]
[1735215260270,1.68666884,95725.0,95724.0,1e-06]
[1735215260815,1.86700684,95725.0,95724.0,1e-06]
[1735215261067,1.86609234,95725.0,95724.0,1e-06]
[1735215261414,1.89267772,95725.0,95724.0,1e-06]
[1735215261632,2.00005132,95725.0,95724.0,1e-06]
[1735215261837,2.00205132,95725.0,95724.0,1e-06]
[1735215262044,2.15065132,95725.0,95724.0,1e-06]
[1735215262243,0.621869,95717.0,95716.0,4.7e-07]
[1735215262447,0.979808,95717.0,95716.0,4.7e-07]
[1735215262594,1.0080816,95717.0,95716.0,4.7e-07]
[1735215262976,1.0310816,95717.0,95716.0,4.7e-07]
[1735215263182,1.6660816,95717.0,95716.0,4.7e-07]
[1735215263500,0.521934,95687.0,95670.0,0.0751]
[1735215263830,1.68455784,95687.0,95686.0,0.00060529]
[1735215264124,1.78854416,95687.0,95686.0,0.00060529]
[1735215264330,1.68455784,95687.0,95686.0,0.00060529]
[1735215265127,1.53275184,95687.0,95686.0,0.00260529]
[1735215266118,1.53275184,95687.0,95686.0,0.00660529]
[1735215266500,1.53275184,95687.0,95686.0,0.00460529]
[1735215266829,1.46983184,95687.0,95686.0,0.00060529]
[1735215267446,1.47535684,95687.0,95686.0,0.00060529]
[1735215267660,1.36983184,95687.0,95686.0,0.00060529]
[1735215271281,2.88123014,95687.0,95686.0,2.9e-07]
[1735215271509,2.02229714,95687.0,95686.0,2.9e-07]
[1735215272342,2.02229714,95687.0,95686.0,8.579e-05]
[1735215272944,3.63791814,95687.0,95686.0,0.00108579]
[1735215273361,3.58645814,95687.0,95686.0,0.00108579]
[1735215273565,3.46205314,95687.0,95686.0,0.00108579]
[1735215273780,3.23234914,95687.0,95686.0,8.579e-05]
[1735215273962,2.94902314,95687.0,95686.0,8.579e-05]
[1735215274164,2.82873582,95687.0,95686.0,8.579e-05]
[1735215274367,2.63132082,95687.0,95686.0,8.579e-05]
[1735215274684,2.75578836,95687.0,95686.0,8.579e-05]
[1735215275124,2.76378836,95687.0,95686.0,0.00108579]
[1735215275524,2.75578836,95687.0,95686.0,8.579e-05]
[1735215275733,2.86777468,95687.0,95686.0,0.00108579]
[1735215275932,2.55736268,95687.0,95686.0,0.00108579]
[1735215276074,2.63262368,95687.0,95686.0,0.00108579]
[1735215276472,2.52863736,95687.0,95686.0,0.00108579]
[1735215277221,2.11092922,95687.0,95686.0,0.00108579]
[1735215277395,2.09085122,95687.0,95686.0,0.00108579]
[1735215277938,2.11912482,95687.0,95686.0,0.00108579]
[1735215278159,2.21912482,95687.0,95686.0,7.9e-07]
[1735215278365,1.95289714,95687.0,95686.0,7.9e-07]
[1735215279748,1.74891082,95687.0,95686.0,7.9e-07]
[1735215280141,1.84891082,95687.0,95686.0,7.9e-07]
[1735215280972,1.74891082,95687.0,95686.0,7.9e-07]
[1735215281172,1.84891082,95687.0,95686.0,7.9e-07]
[1735215282376,1.82063722,95687.0,95686.0,7.9e-07]
[1735215282578,1.92462354,95687.0,95686.0,7.9e-07]
[1735215282776,1.84559354,95687.0,95686.0,7.9e-07]
[1735215283029,1.82462354,95687.0,95686.0,7.9e-07]
[1735215283248,1.59305184,95687.0,95686.0,7.9e-07]
[1735215283402,1.69305184,95687.0,95686.0,7.9e-07]
[1735215283612,1.49305184,95687.0,95686.0,7.9e-07]
[1735215284589,0.15,95659.0,95653.0,0.078]
[1735215284730,0.15,95659.0,95653.0,0.07807042]
[1735215285690,0.209082,95656.0,95653.0,0.07807042]
[1735215285923,0.00073954,95655.0,95653.0,0.07807042]
[1735215286127,0.00073954,95655.0,95653.0,0.08307042]
[1735215287316,0.00073954,95655.0,95653.0,0.08607042]
[1735215287504,0.00073954,95655.0,95653.0,0.08107042]
[1735215287684,0.209086,95654.0,95653.0,0.08107042]
[1735215287897,0.209086,95654.0,95653.0,0.08707042]
[1735215288097,0.001,95655.0,95653.0,0.08707042]
[1735215288681,0.15,95657.0,95653.0,0.08107042]
[1735215288922,0.001,95654.0,95653.0,0.08407042]
[1735215289326,0.00073954,95656.0,95653.0,0.07807042]
[1735215289496,0.001,95655.0,95653.0,0.08707042]
[1735215290215,0.001,95655.0,95653.0,0.08407042]
[1735215290426,0.001,95655.0,95653.0,0.08607042]
[1735215290837,0.001,95655.0,95653.0,0.08407042]
[1735215291355,0.15,95657.0,95653.0,0.07807042]
[1735215291812,0.001,95654.0,95653.0,0.08407042]
[1735215291997,0.001,95654.0,95653.0,0.07807042]
[1735215292129,0.001,95654.0,95653.0,0.08407042]
[1735215292330,0.001,95654.0,95653.0,0.08707042]
[1735215292526,0.001,95655.0,95653.0,0.08707042]
[1735215292734,0.001,95655.0,95653.0,0.08407042]
[1735215293143,0.001,95655.0,95653.0,0.08707042]
[1735215293339,0.001,95655.0,95653.0,0.09207042]
[1735215293574,0.001,95655.0,95653.0,0.08907042]
[1735215293980,0.001,95655.0,95653.0,0.09207042]
[1735215294187,0.15,95660.0,95653.0,0.08107042]
[1735215294391,0.15,95660.0,95653.0,0.08707042]
[1735215294626,0.001,95655.0,95653.0,0.08707042]
[1735215295140,0.00073954,95657.0,95653.0,0.08107042]
[1735215295290,0.00073954,95657.0,95653.0,0.07807042]
[1735215295476,0.00073954,95657.0,95653.0,0.08407042]
[1735215295814,0.209082,95656.0,95653.0,0.08007042]
[1735215296010,0.001,95655.0,95653.0,0.08607042]
[1735215296216,0.001,95655.0,95653.0,0.08407042]
[1735215296437,0.209086,95654.0,95653.0,0.08607042]
[1735215296621,0.001,95655.0,95653.0,0.08607042]
[1735215296823,0.209086,95654.0,95653.0,0.08607042]
[1735215297027,0.00173954,95655.0,95653.0,0.08607042]
[1735215297028,0.00029712,95655.0,95653.0,0.08407042]
[1735215297228,0.00103666,95655.0,95653.0,0.08107042]
[1735215297470,0.00073954,95655.0,95653.0,0.08115602]
[1735215297651,0.00073954,95655.0,95653.0,0.08615602]
[1735215297910,0.00073954,95655.0,95653.0,0.08115602]
[1735215298268,0.00173954,95655.0,95653.0,0.08715602]
[1735215298674,0.00173954,95655.0,95653.0,0.08415602]
[1735215299205,0.00173954,95655.0,95653.0,0.08715602]
[1735215299348,0.209086,95654.0,95653.0,0.08715602]
[1735215299563,0.209086,95654.0,95653.0,0.08415602]
[1735215299763,0.209086,95654.0,95653.0,0.08715602]
[1735215300366,0.209086,95654.0,95653.0,0.08415602]
[1735215300593,0.209086,95654.0,95653.0,0.07815602]
[1735215300962,0.001,95654.0,95653.0,0.08415602]
[1735215302218,0.001,95654.0,95653.0,0.08715602]
[1735215302857,0.001,95654.0,95653.0,0.00915602]
[1735215303068,0.25572586,95654.0,95653.0,0.00915602]
[1735215303267,0.25498632,95654.0,95653.0,0.00915602]
[1735215304657,0.48612332,95654.0,95653.0,0.00915602]
[1735215304813,0.66800964,95654.0,95653.0,0.00915602]
[1735215305025,0.81570964,95654.0,95653.0,0.00915602]
[1735215305283,0.1,95647.0,95628.0,0.000171]
[1735215305470,2.06077286,95647.0,95646.0,0.00022318]
[1735215305641,2.06003332,95647.0,95646.0,0.00022318]
[1735215305840,2.14590083,95647.0,95646.0,0.00022318]
[1735215306225,2.05690483,95647.0,95646.0,0.00022318]
[1735215306613,2.02675183,95647.0,95646.0,0.00022318]
[1735215306894,2.18867183,95647.0,95646.0,0.00022318]
[1735215307108,2.1369252,95647.0,95646.0,0.00022318]
[1735215307313,1.4408482,95647.0,95646.0,0.00022318]
[1735215307886,1.46878067,95647.0,95646.0,0.00022318]
[1735215308123,1.49259483,95647.0,95646.0,0.00022318]
[1735215308328,0.747639,95639.0,95638.0,6.8e-07]
[1735215308490,1.93187077,95639.0,95638.0,6.7e-07]
[1735215309104,1.9526045,95639.0,95638.0,6.7e-07]
[1735215310411,1.9576045,95639.0,95638.0,6.7e-07]
[1735215310621,1.9666045,95639.0,95638.0,6.7e-07]
[1735215311165,0.722061,95629.0,95628.0,0.000171]
[1735215311358,2.57318627,95629.0,95628.0,0.00022254]
[1735215311562,2.30777727,95629.0,95628.0,0.00022254]
[1735215311973,2.06957127,95629.0,95628.0,0.00022254]
[1735215312323,1.94822327,95629.0,95628.0,0.00022254]
[1735215312447,1.2054548,95629.0,95628.0,0.00122254]
[1735215312653,1.08120764,95629.0,95628.0,0.00122254]
[1735215312891,0.83703932,95629.0,95628.0,0.00122254]
[1735215320832,0.57212732,95629.0,95628.0,0.00122254]
[1735215321442,0.11198632,95629.0,95628.0,0.07812254]
[1735215321744,0.003,95629.0,95628.0,0.12502254]
[1735215322164,0.00073954,95633.0,95628.0,0.12502254]
[1735215322562,0.001,95629.0,95628.0,0.12502254]
[1735215322970,0.15073954,95633.0,95628.0,0.12502254]
[1735215323194,0.15,95633.0,95628.0,0.12502254]
[1735215323368,0.15,95633.0,95628.0,0.12602254]
[1735215323554,0.00091074,95638.0,95629.0,0.209141]
[1735215323756,0.0001712,95638.0,95631.0,0.0769]
[1735215324254,0.0001712,95638.0,95633.0,0.20913]
[1735215324639,0.0001712,95638.0,95634.0,0.0769]
[1735215324845,0.0001712,95638.0,95635.0,0.209128]
[1735215325185,0.0001712,95638.0,95637.0,0.232124]
[1735215325456,0.0001712,95655.0,95652.0,0.20909]
[1735215325795,0.0001712,95655.0,95654.0,0.0769]
[1735215326373,0.0001712,95655.0,95654.0,0.28703135]
[1735215326578,0.0001712,95655.0,95654.0,0.41297232]
[1735215326812,0.0001712,95655.0,95654.0,0.285986]
[1735215327427,0.0001712,95655.0,95654.0,0.289986]
[1735215328034,0.0001712,95655.0,95654.0,0.49257982]
[1735215328719,0.0001712,95687.0,95675.0,0.0769]
[1735215329125,0.0001712,95687.0,95676.0,0.41912114]
[1735215329347,0.0001712,95687.0,95677.0,0.00104509]
[1735215329551,0.0001712,95687.0,95681.0,0.209026]
[1735215329990,0.00032703,95686.0,95681.0,0.209026]
[1735215330181,0.00032703,95686.0,95675.0,0.0769]